Cogmind - Beta 10.2 *** ADVENTURER MODE // 2020.12.25 @ 23:02:08 Player: leiavoia Result: Destroyed by Q157-s with Vibroblade Performance ------------- Evolutions (9) 4500 Regions Visited (18) 3600 Robots Destroyed (309) 1545 Value Destroyed (15819) 15819 Prototype IDs (22) 440 Alien Tech Used (0) 0 Bonus (4783) 4783 TOTAL SCORE: 30687 Bonus ------- High Alert Combat Kills 3032 Follower Combat Kills 2195 Network Hubs Disabled 200 Built Enhanced Grunts 300 Met R17 at Cetus 500 Scanned by Researcher 500 Friendly Fire -1944 Cogmind --------- Core Integrity 0/1600 Matter 300/300 Energy 85/100 System Corruption 15% Temperature Cool (9) Movement Core (1100) Ox21 Location -1/Access Parts ------- > --- POWER (2) -------- (None) > --- PROPULSION (4) --- (None) > --- UTILITY (15) ----- High-capacity Storage Unit High-capacity Storage Unit Advanced Signal Interpreter > --- WEAPON (4) ------- (None) > --- INVENTORY (20) --- Antimatter Reactor Light Quantum Reactor Light Quantum Reactor Myomer Leg Myomer Leg Myomer Leg Biometal Leg Compact Battery (300) Energy Well (500) Matter Compressor (250) Advanced Field Recycling Unit (138) Gamma Rifle Heavy Laser Heavy Laser Heavy Laser Heavy Laser Phase Gun Phase Gun Heavy Machine Gun Portable AFG (75) Peak State ------------ > --- POWER ------------ Quantum Reactor Light Quantum Reactor > --- PROPULSION ------- Advanced Heavy Treads Biometal Heavy Treads > --- UTILITY ---------- Improved Thermal Converter Coolant Network High-capacity Storage Unit High-capacity Storage Unit High-capacity Storage Unit High-capacity Storage Unit Advanced Energy Well Improved Sensor Array Advanced Signal Interpreter Advanced Target Analyzer Advanced Core Analyzer Improved Transmission Jammer Layered Heavy Armor Plating > --- WEAPON ----------- Phase Gun Quantum Rifle Enhanced Gauss Cannon Fusion Bomb Launcher > --- INVENTORY -------- Light Particle Reactor Light Particle Reactor Heavy Treads Improved Heavy Siege Treads Biometal Heavy Treads Energy Well Matter Compressor Matter Filter Weapon Cycler Improved Weapon Shielding Layered Heavy Armor Plating Layered Heavy Armor Plating Layered Heavy Armor Plating Centrium Light Armor Plating AEGIS Remote Shield Advanced Field Recycling Unit Drone Bay Hypervelocity EM Gauss Rifle Compact HERF Cannon Gauss Rifle KE Penetrator KE Penetrator Railgun Perforator Gamma Bomb Array Smartbomb Launcher Force Lance Portable AFG [Rating: 178] Favorites ----------- Power Light Particle Reactor Engine Improved Ion Engine Power Core Light Nuclear Core Reactor Light Particle Reactor Propulsion Armored Huge Wheel Treads Centrium Heavy Treads Wheel Armored Huge Wheel Utility High-capacity Storage Unit Device Weapon Cycler Storage High-capacity Storage Unit Processor Advanced Signal Interpreter Protection Medium Armor Plating Weapon KE Penetrator Energy Gun Improved Medium Laser Energy Cannon Heavy Particle Cannon Ballistic Gun KE Penetrator Ballistic Cannon Advanced Assault Cannon Launcher Rocket Launcher Slashing Weapon Phasing Sabre Piercing Weapon Force Lance Build | -11 -10 -9 -9 -8 -7 -6 -5 -5 -5 -5 -5 -5 -5 -4 -3 -3 -2 -1 ------- Run | Scr Mat Mat Min Mat Fac Fac Fac Was Fac Ext Cet Arc Hub Fac Res Tes Res Acc Slots Evolved 18 | . . 2 . 2 2 2 2 . . . . . . 2 2 . 2 2 Power 1 | . . . . . . . . . . . . . . . 1 . . . Propulsion 2 | . . . . . 1 . 1 . . . . . . . . . . . Utility 13 | . . 1 . 2 1 2 1 . . . . . . 1 1 . 2 2 Weapon 2 | . . 1 . . . . . . . . . . . 1 . . . . Parts Attached 373 | 5 8 5 7 19 18 10 17 10 1 25 6 2 15 11 66 39 21 88 Power 34 | 1 . . 1 1 2 . 2 2 1 . 1 . . . 10 1 2 10 Engine 2 | 1 . . 1 . . . . . . . . . . . . . . . Core 6 | . . . . 1 1 . . . . . . . . . 2 . . 2 Reactor 26 | . . . . . 1 . 2 2 1 . 1 . . . 8 1 2 8 Propulsion 32 | 1 3 1 2 3 4 . 2 . . 1 . . 2 . 1 2 . 10 Treads 23 | 1 3 1 1 3 2 . 1 . . . . . 2 . 1 2 . 6 Leg . | . . . . . . . . . . . . . . . . . . . Wheel 9 | . . . 1 . 2 . 1 . . 1 . . . . . . . 4 Hover . | . . . . . . . . . . . . . . . . . . . Flight . | . . . . . . . . . . . . . . . . . . . Utility 160 | 1 2 2 . 6 5 5 7 3 . 16 1 1 9 2 36 19 11 34 Device 88 | . . . . 1 1 2 1 2 . 12 . . 5 2 24 11 8 19 Storage 22 | 1 2 1 . 1 1 1 3 . . . . . . . 5 . 2 5 Processor 10 | . . . . 2 . 1 . 1 . . . . . . 2 . . 4 Hackware . | . . . . . . . . . . . . . . . . . . . Protection 40 | . . 1 . 2 3 1 3 . . 4 1 1 4 . 5 8 1 6 Artifact . | . . . . . . . . . . . . . . . . . . . Weapon 147 | 2 3 2 4 9 7 5 6 5 . 8 4 1 4 9 19 17 8 34 Energy Gun 24 | 2 2 1 3 . 1 . . . . . . . . . . 1 3 11 Energy Cannon 7 | . . . . 3 1 . . . . . . . . . . 1 1 1 Ballistic Gun 55 | . 1 1 . 2 4 3 2 . . 2 2 . 1 4 13 6 2 12 Ballistic Cannon 24 | . . . . 2 . . 2 3 . 4 1 1 2 3 . 2 1 3 Launcher 11 | . . . 1 2 . . . . . 1 1 . . . . 2 1 3 Special Weapon . | . . . . . . . . . . . . . . . . . . . Impact Weapon . | . . . . . . . . . . . . . . . . . . . Slashing Weapon 17 | . . . . . . 1 2 2 . 1 . . 1 2 6 . . 2 Piercing Weapon 9 | . . . . . 1 1 . . . . . . . . . 5 . 2 Special Melee Weapon . | . . . . . . . . . . . . . . . . . . . Unidentified Prototypes 14 | . . . 1 . 1 . . . . . 1 . 1 . 2 3 2 3 Parts Lost 113 | . . . . 4 2 . 2 2 . 6 . . 6 . 7 13 . 71 Power 16 | . . . . 1 . . 1 1 . . . . . . 2 1 . 10 Propulsion 14 | . . . . . . . 1 . . 1 . . 2 . . 1 . 9 Utility 44 | . . . . . 1 . . 1 . 4 . . 3 . 3 7 . 25 Weapon 39 | . . . . 3 1 . . . . 1 . . 1 . 2 4 . 27 Highest Loss Streak 23 | . . . . 1 1 . 1 1 . 3 . . 5 . 3 4 . 23 Average Slot Usage (%) 88 | . 96 99 100 99 93 86 84 84 87 87 86 83 86 84 88 87 86 78 Engine 1 | . 14 11 11 8 . . . . . . . . . . . . . . Core 1 | . . . . . 6 . . . . . . . . . 1 . . . Reactor 4 | . . . . . . 6 4 4 4 5 5 5 5 5 5 8 7 6 Treads 7 | . 27 22 14 12 11 6 5 . . . . . . 10 9 8 8 7 Wheel 4 | . . . 7 5 5 6 6 11 11 11 11 11 10 . . . . . Device 10 | . . . . 8 4 3 4 6 11 18 14 11 15 18 13 10 17 15 Storage 19 | . 24 22 22 18 21 20 17 17 17 17 17 17 17 15 21 19 17 20 Processor 11 | . . . . 17 15 15 17 12 11 11 11 11 11 10 12 12 8 11 Protection 5 | . . 10 11 1 3 6 6 11 11 3 8 6 5 5 2 7 8 3 Energy Gun 2 | . 14 21 15 . . . . . . . . . . . . . 4 5 Energy Cannon 1 | . . . . 2 6 . . . . . . . . . . . 1 . Ballistic Gun 9 | . 14 11 11 11 9 19 11 . . 5 7 5 6 12 15 12 5 2 Ballistic Cannon 3 | . . . . 7 3 . 1 11 11 9 6 10 7 2 . 2 . 2 Naked Turns . | . . . . . . . . . . . . . . . . . . . Heaviest Build 231 | 13 20 57 63 79 95 115 143 146 146 152 152 159 159 165 194 210 231 230 Greatest Support 160 | 20 40 40 43 40 60 28 56 56 56 56 56 56 160 160 160 150 150 150 Greatest Overweight (x) 47 | 4 . 1 5 5 4 4 6 2 2 2 2 2 2 1 1 1 1 47 Average Overweight (x) 2 | . . . 3 3 2 3 3 2 2 2 2 2 1 . . 1 1 1 Largest Inventory Capacity 36 | 6 10 16 16 18 24 24 28 28 28 28 28 28 28 28 36 36 36 36 Average Capacity 27 | 5 7 15 16 16 22 24 27 28 28 28 28 28 28 28 33 36 36 35 Most Carried 36 | 5 10 16 16 18 24 24 28 28 28 28 28 28 28 22 36 36 36 36 Average Carried 25 | 2 7 13 15 16 22 23 23 26 27 27 27 27 27 20 31 32 30 27 Final Capacity 36 | 6 10 16 16 18 24 24 28 28 28 28 28 28 28 28 36 36 36 20 Final Carried 36 | 5 10 16 16 18 24 24 28 28 27 28 28 28 22 21 36 28 36 20 Class Distribution -------------------- 31% | Hauler-Gunner 19% | Hauler-Mutant 17% | Hauler-Skirmisher 7% | Mutant 6% | Scavenger-Gunner 4% | Skirmisher 3% | Scavenger-Mutant 3% | Derelict-Mutant 3% | Tank Dominant Class ---------------- Mutant | -10/Materials Tank | -9/Materials Derelict-Mutant | -9/Mines Skirmisher | -8/Materials Hauler-Mutant | -7/Factory Hauler-Gunner | -6/Factory Hauler-Mutant | -5/Factory Hauler-Mutant | -5/Waste Hauler-Mutant | -5/Factory Hauler-Skirmisher | -5/Extension Hauler-Skirmisher | -5/Cetus Hauler-Mutant | -5/Archives Hauler-Gunner | -5/Hub_04(d) Scavenger-Mutant | -4/Factory Hauler-Gunner | -3/Research Hauler-Gunner | -3/Testing Hauler-Skirmisher | -2/Research Hauler-Gunner | -1/Access Resources | -11 -10 -9 -9 -8 -7 -6 -5 -5 -5 -5 -5 -5 -5 -4 -3 -3 -2 -1 ----------- Run | Scr Mat Mat Min Mat Fac Fac Fac Was Fac Ext Cet Arc Hub Fac Res Tes Res Acc Matter Collected 12097 | 240 159 235 154 549 757 402 423 288 36 986 295 97 510 149 2204 1760 298 2555 Remotely 2219 | . . . . . . . . . . . . . . . 583 1162 . 474 Salvage Created 16484 | . 177 403 106 1087 1298 576 664 . 52 473 512 27 863 215 2396 2214 772 4649 Parts 784 | . 7 25 10 62 64 27 37 . 1 20 25 3 41 8 179 72 32 171 Haulers Intercepted 7 | . . 1 . 3 2 . . . . . . . 1 . . . . . Recyclers Shooed 8 | . . 2 . 1 . 1 . . . . . . . . . . 1 3 Parts Field Recycled 16 | . . . . . . . . . . 7 . . . . . . 9 . Retrieved Matter 480 | . . . . . . . . . . 116 . . . . . . 364 . Parts Self-Destructed . | . . . . . . . . . . . . . . . . . . . Prevented . | . . . . . . . . . . . . . . . . . . . Kills | -11 -10 -9 -9 -8 -7 -6 -5 -5 -5 -5 -5 -5 -5 -4 -3 -3 -2 -1 ------- Run | Scr Mat Mat Min Mat Fac Fac Fac Was Fac Ext Cet Arc Hub Fac Res Tes Res Acc Combat Hostiles Destroyed 229 | . 2 2 6 24 17 9 9 . 1 9 8 . 7 3 29 29 12 62 Melee 1 | . . . . . . . . . . . . . . . . . 1 . Guns 118 | . 2 2 3 5 11 9 6 . . 2 1 . 3 3 29 21 3 18 Cannons 67 | . . . . 10 3 . 3 . 1 6 7 . 4 . . 5 3 25 AOE 38 | . . . 3 9 3 . . . . 1 . . . . . 3 5 14 Classes Destroyed 18 | . 2 3 2 4 2 . 1 . . 1 . . 2 . . 1 . . Worker 15 | . . . . 1 2 1 3 . . . . . 1 . . 3 . 4 Builder 16 | . . 2 . 2 1 . 1 . . . . . 2 . 2 2 . 4 Tunneler 3 | . . . . . 1 . . . . 1 . . . . 1 . . . Hauler 7 | . . 1 . 3 2 . . . . . . . 1 . . . . . Recycler 14 | . 1 3 . 2 3 . . . . . . . . . . . 1 4 Carrier 1 | . . . . . . . . . . . . . 1 . . . . . Operator 6 | . . . . 2 . . . . . . . 1 2 . 1 . . . Watcher 11 | . . 1 . . 3 . 1 . . 2 . . . . 1 . . 3 Swarmer 27 | . . . 4 3 4 . . . . . . . . . . . 5 11 Grunt 94 | . 2 2 1 15 9 6 5 . . 4 2 . . 2 4 15 2 25 Brawler 4 | . . . . 1 . . . . . . 1 . . . . . . 2 Duelist 6 | . . . 1 1 . . . . . . . . . . 1 1 . 2 Protector 3 | . . . . . . . . . . . . . 1 . . . . 2 Researcher 3 | . . . . . . . . . . . . . . . . 3 . . Sentry 28 | . . . . 4 3 2 2 . . 2 . . 2 1 5 4 2 1 Hunter 28 | . . . . . . . 2 . . 3 2 . 2 . 2 6 . 11 Programmer 35 | . . . . . 1 1 . . 1 . . . 2 . 17 2 3 8 Cetus Guard 3 | . . . . . . . . . . . 3 . . . . . . . Enhanced Grunt 2 | . . . . . . . . . . . . . 2 . . . . . Protovariant G 1 | . . . . . . . . . . . . . . . . 1 . . Surgeon 1 | . . . . . . . . . . 1 . . . . . . . . Best Kill Streak 13 | . 2 5 4 8 8 4 5 . 1 2 3 1 6 2 6 13 7 11 Combat Bots Only 12 | . 2 2 4 5 5 3 5 . 1 2 3 . 2 2 5 12 7 10 Max Kills in Single Turn 5 | . 1 3 2 3 2 1 2 . 1 1 2 1 3 1 3 4 5 4 Gunslinging 1 | . . . . . 1 . . . . . . . . . . . . . Exploded 5 | . . . 2 3 2 . . . . 1 . . . . . 2 5 2 Melee 1 | . . . . . . . . . . . . . . . . . 1 . Uniques/NPCs Destroyed 1 | . . . . . . . . . . . 1 . . . . . . . Revision 17 (-5/Cetus) Combat | -11 -10 -9 -9 -8 -7 -6 -5 -5 -5 -5 -5 -5 -5 -4 -3 -3 -2 -1 -------- Run | Scr Mat Mat Min Mat Fac Fac Fac Was Fac Ext Cet Arc Hub Fac Res Tes Res Acc Damage Taken 28860 | . 54 104 80 859 991 578 734 161 . 1231 113 147 1407 213 2210 5164 823 13991 Core 2532 | . . . 4 134 81 55 16 . . 117 11 21 88 . 130 181 52 1642 Absorbed by Shields 901 | . . . . . . . . . . 26 94 . 55 152 173 . . 401 Reduced by Siege Mode 114 | . . . . . . . . . . . . . . . . 114 . . Core Remaining (%) 90 | 100 100 . 99 75 88 93 . . . . . . 74 100 . 76 96 . Volleys Fired 589 | . 7 15 14 59 50 24 23 6 2 44 22 5 32 14 64 77 22 109 Largest 4 | . 2 3 3 3 3 3 3 3 2 3 3 3 3 4 4 4 4 4 Hottest 333 | . 60 100 132 146 186 86 111 153 96 153 149 149 149 160 141 179 333 282 Shots Fired 1661 | . 14 35 20 153 118 72 67 18 4 118 65 15 85 49 226 282 66 254 Gun 1110 | . 14 35 18 72 64 72 46 . . 17 35 5 39 36 226 225 43 163 Cannon 487 | . . . . 62 54 . 21 18 4 96 29 10 46 13 . 48 22 64 Launcher 64 | . . . 2 19 . . . . . 5 1 . . . . 9 1 27 Special . | . . . . . . . . . . . . . . . . . . . Kinetic 1341 | . 7 13 6 104 78 72 67 18 4 113 64 15 85 49 226 268 12 140 Thermal 163 | . . 7 12 30 23 . . . . . . . . . . . 40 51 Explosive 53 | . . . 2 19 . . . . . 5 1 . . . . 9 1 16 Electromagnetic 104 | . 7 15 . . 17 . . . . . . . . . . 5 13 47 Robot Hit Streak 44 | . 6 24 14 25 44 29 26 29 3 19 10 2 5 15 35 26 25 40 Robot Miss Streak 5 | . 1 2 1 2 2 4 2 1 . 3 2 3 4 1 1 2 1 5 Penetration Max 2 | . . . . . 1 1 1 . . 1 1 . 1 . 2 2 . 2 Secondary Targets 18 | . . 1 . . 2 . . . . . . . . . 7 2 . 6 Max Gunslinging Chain 1 | . . 1 . . 1 . . . . . . . . . 1 1 . 1 Shots Hit Robots 1254 | . 11 27 18 117 90 56 48 16 3 77 46 8 40 41 177 212 62 205 Core Hits 715 | . 5 12 8 67 51 45 32 2 2 31 20 3 26 8 73 96 24 210 Critical Hits 260 | . . . . 2 4 2 1 2 . 11 20 4 20 12 60 48 2 72 Critical Kills 85 | . . . . 1 1 . . . . 6 7 1 9 1 20 13 1 25 Critical Parts Destroyed 148 | . . . . 1 1 2 1 . . 5 11 1 10 10 37 31 1 37 Melee Attacks 162 | . . . . . 5 4 18 14 1 21 . . 10 3 34 13 19 20 Thermal 6 | . . . . . . . . . . . . . . . . . . 6 Impact . | . . . . . . . . . . . . . . . . . . . Slashing 102 | . . . . . . 1 18 14 1 21 . . 10 3 34 . . . Piercing 54 | . . . . . 5 3 . . . . . . . . . 13 19 14 Sneak Attacks 2 | . . . . . . . . . . . . . . . 1 1 . . Combat Hostiles 1 | . . . . . . . . . . . . . . . . 1 . . Follow-up Attacks . | . . . . . . . . . . . . . . . . . . . Damage Inflicted 38297 | . 178 606 616 3460 2614 1346 1233 538 110 2064 1157 183 1437 1136 3325 5788 2457 10049 Guns 18539 | . 119 335 276 773 1124 1346 934 . . 341 583 67 617 944 3135 3613 1065 3267 Cannons 9031 | . . . . 1423 1133 . 299 538 110 1483 508 116 409 192 . 1038 427 1355 Explosions 10041 | . 59 271 340 1264 357 . . . . 240 66 . 411 . . 1027 768 5238 Melee 490 | . . . . . . . . . . . . . . . 190 103 197 . Ramming 196 | . . . . . . . . . . . . . . . . 7 . 189 Kinetic 22533 | . 41 67 82 1624 1363 1346 1233 538 110 1824 1091 183 1026 1136 3135 4546 273 2915 Thermal 4886 | . 59 326 194 801 782 . . . . . . . . . . 368 1065 1291 Explosive 6996 | . . . 340 1035 . . . . . 240 66 . . . . 659 768 3888 Electromagnetic 3196 | . 78 213 . . 469 . . . . . . . 411 . . 105 154 1766 Impact . | . . . . . . . . . . . . . . . . . . . Slashing 190 | . . . . . . . . . . . . . . . 190 . . . Piercing 300 | . . . . . . . . . . . . . . . . 103 197 . Highest Corruption 34 | . . . . 1 . . . 33 33 33 22 22 34 . 16 25 6 15 Average Corruption 18 | . . . . 1 . . . 18 33 26 22 22 22 . 12 19 5 9 Corruption Purged 11 | . . . . . . . . . . 11 . . . . . . . . Effects 617 | . . . . . . . . 27 9 160 38 18 68 . 116 116 4 61 Message Errors 82 | . . . . . . . . 5 1 22 7 3 8 . 12 10 . 14 Matter Fused 84 | . . . . . . . . 4 4 16 4 3 9 . 21 16 1 6 Heat Flow Errors 39 | . . . . . . . . 4 1 8 2 2 4 . 7 5 . 6 Energy Discharges 32 | . . . . . . . . 1 . 7 3 . 2 . 9 6 2 2 Parts Rejected 3 | . . . . . . . . . 1 . 1 . . . . . . 1 Data Loss (minor) 46 | . . . . . . . . 1 1 20 2 . 3 . 11 6 . 2 Data Loss (major) 12 | . . . . . . . . 1 . 5 . . 3 . 1 2 . . Misfires 22 | . . . . . . . . 1 . 8 3 1 1 . 5 2 . 1 Alerts 9 | . . . . . . . . . . 3 1 . . . 3 2 . . Misdirections 67 | . . . . . . . . 6 . 22 4 2 12 . 13 7 . 1 Targeting Errors 192 | . . . . . . . . 3 1 44 9 7 23 . 28 53 1 23 Weapon Failures 29 | . . . . . . . . 1 . 5 2 . 3 . 6 7 . 5 Overload Shots . | . . . . . . . . . . . . . . . . . . . Overflow Damage 494 | . 18 7 56 41 10 . . . . 31 . . . . . 69 17 245 Projectiles 110 | . . . . 22 10 . . . . 31 . . . . . 36 11 . Explosions 384 | . 18 7 56 19 . . . . . . . . . . . 33 6 245 Melee . | . . . . . . . . . . . . . . . . . . . Knockbacks 74 | . . . . 7 . . 6 . 1 13 4 1 2 2 . 11 1 26 Impact 1 | . . . . . . . . . . . . . . . . . . 1 Kinetic 69 | . . . . 5 . . 5 . 1 12 4 1 2 2 . 11 1 25 Secondary 4 | . . . . 2 . . 1 . . 1 . . . . . . . . Self-Inflicted Damage 470 | . 22 53 . 27 41 . . . . 18 . . 73 . . 123 . 113 Shots 14 | . 1 2 . 2 1 . . . . 1 . . 1 . . 2 . 4 Rammed 14 | . . . . . . . . . . . . . . . . 2 . 12 Targets Rammed 15 | . . . . . . . . . . . . . . . . 2 . 13 Kicked . | . . . . . . . . . . . . . . . . . . . Crushed 1 | . . . . . . . . . . . . . . . . . . 1 Highest Temperature 634 | . 38 258 225 332 411 285 327 222 226 445 200 310 382 356 332 553 44 634 Average Temperature 105 | . 21 93 88 91 101 86 107 92 118 114 80 143 140 180 105 96 27 97 Received Heat Transfer 4371 | . 24 36 6 522 309 300 132 . . 159 . 18 36 38 96 1101 72 1522 Effects 36 | . . 3 . 2 . . 1 . . . . 4 4 5 4 2 . 11 Shutdowns 4 | . . . . . . . . . . . . . 1 . 1 1 . 1 Energy Bleed 7 | . . 1 . . . . 1 . . . . 1 1 1 1 . . 1 Interference 18 | . . 2 . 2 . . . . . . . 3 2 3 2 1 . 3 Matter Decay 2 | . . . . . . . . . . . . . . . . . . 2 Short Circuit 1 | . . . . . . . . . . . . . . 1 . . . . Damage (major) 4 | . . . . . . . . . . . . . . . . . . 4 Siege Activations 1 | . . . . . . . . . . . . . . . . 1 . . Total Turns 67 | . . . . . . . . . . . . . . . . 67 . . Longest Duration 67 | . . . . . . . . . . . . . . . . 67 . . Robots Corrupted 7 | . . . . . . . . . . . . . 2 . . . . 5 Combat Hostiles 5 | . . . . . . . . . . . . . . . . . . 5 Parts Fried 22 | . . . . . . . . . . . . . 7 . . 4 . 11 Impact Corruptions 1 | . . . . . . . . . . 1 . . . . . . . . Robots Melted . | . . . . . . . . . . . . . . . . . . . Combat Hostiles . | . . . . . . . . . . . . . . . . . . . Parts Melted 12 | . . 1 . 2 . . . . . . . . . . . . 4 5 Heat Transferred 6198 | . 100 425 407 1038 929 . . . . . . . . . . 250 1423 1626 Parts Sabotaged 7 | . . . . . . . . . . . . . . . . . . 7 Parts Stolen . | . . . . . . . . . . . . . . . . . . . Parts Stripped . | . . . . . . . . . . . . . . . . . . . Power Chain Reactions 12 | . 1 4 . . 3 . . . . . . . . . . 1 . 3 Missiles Intercepted . | . . . . . . . . . . . . . . . . . . . Alert | -11 -10 -9 -9 -8 -7 -6 -5 -5 -5 -5 -5 -5 -5 -4 -3 -3 -2 -1 ------- Run | Scr Mat Mat Min Mat Fac Fac Fac Was Fac Ext Cet Arc Hub Fac Res Tes Res Acc Peak Influence 1369 | . 115 150 189 573 224 140 276 56 162 183 593 317 1078 652 463 748 613 1369 Initial 444 | . . 41 49 . 206 28 34 24 . 68 . 132 92 444 296 84 356 321 Average 274 | . 44 62 41 316 117 92 111 14 146 75 273 283 628 553 320 359 376 808 Maximum Alert Level 4 | . . . . 2 1 . 1 . . . 2 1 3 2 2 3 2 4 Low Security (%) 49 | 100 100 100 100 19 73 100 79 100 100 100 33 11 10 . 12 24 . 2 Level 1 30 | . . . . 57 26 . 20 . . . 57 88 23 . 72 30 71 27 Level 2 10 | . . . . 22 . . . . . . 8 . 17 100 15 35 28 3 Level 3 6 | . . . . . . . . . . . . . 48 . . 9 . 37 Level 4 2 | . . . . . . . . . . . . . . . . . . 28 Level 5 . | . . . . . . . . . . . . . . . . . . . High Security . | . . . . . . . . . . . . . . . . . . . Max Security . | . . . . . . . . . . . . . . . . . . . Squads Dispatched 68 | . 1 1 . 5 3 6 1 . 2 4 1 . 4 1 8 15 1 15 Investigation 14 | . 1 . . 2 2 3 . . . 1 1 . 2 . 1 1 . . Extermination 14 | . . . . . 1 1 1 . . . . . 1 . 5 1 1 3 Reinforcement 22 | . . 1 . 3 . 2 . . 1 3 . . 1 1 1 5 . 4 Assault 9 | . . . . . . . . . 1 . . . . . . . . 8 Garrison 9 | . . . . . . . . . . . . . . . 1 8 . . Intercept . | . . . . . . . . . . . . . . . . . . . Construction Impeded 7 | . . 1 . 2 . . . . . 1 . . . . . 1 . 2 Haulers Reinforced 1 | . . . . . . . . . . . . . . . . . . 1 Stealth | -11 -10 -9 -9 -8 -7 -6 -5 -5 -5 -5 -5 -5 -5 -4 -3 -3 -2 -1 --------- Run | Scr Mat Mat Min Mat Fac Fac Fac Was Fac Ext Cet Arc Hub Fac Res Tes Res Acc Distress Signals 22 | . . 2 . 2 2 3 1 . . 3 2 . . . . 1 1 5 Communications Jammed 148 | . . . . . . . . . . . . . . . . . 11 137 Distress Signals 148 | . . . . . . . . . . . . . . . . . 11 137 Times Spotted 425 | . 6 8 6 43 22 13 13 14 2 25 19 7 24 8 35 48 17 115 Peak Tracking Total 17 | . 3 6 4 6 5 4 7 5 2 6 5 2 6 3 6 10 7 17 Tactical Retreats 25 | . . . . 2 . . 1 2 . 1 . . . 3 1 . 1 14 Traps | -11 -10 -9 -9 -8 -7 -6 -5 -5 -5 -5 -5 -5 -5 -4 -3 -3 -2 -1 ------- Run | Scr Mat Mat Min Mat Fac Fac Fac Was Fac Ext Cet Arc Hub Fac Res Tes Res Acc Traps Triggered 19 | . 2 . . 2 1 . 3 . . 8 . . 1 . 2 . . . Indirectly 1 | . . . . . . . . . . . . . 1 . . . . . Trap Hack Attempts . | . . . . . . . . . . . . . . . . . . . Triggered . | . . . . . . . . . . . . . . . . . . . Disarmed . | . . . . . . . . . . . . . . . . . . . Reprogrammed . | . . . . . . . . . . . . . . . . . . . Reused . | . . . . . . . . . . . . . . . . . . . Traps Extracted . | . . . . . . . . . . . . . . . . . . . Installed . | . . . . . . . . . . . . . . . . . . . Triggered . | . . . . . . . . . . . . . . . . . . . Machines | -11 -10 -9 -9 -8 -7 -6 -5 -5 -5 -5 -5 -5 -5 -4 -3 -3 -2 -1 ---------- Run | Scr Mat Mat Min Mat Fac Fac Fac Was Fac Ext Cet Arc Hub Fac Res Tes Res Acc Machines Disabled 42 | . . . . 5 . 3 2 . 1 2 1 3 13 . . 6 2 4 Max in Single Turn 6 | . . . . 1 . 2 1 . 1 1 1 1 6 . . 1 1 1 Garrison Access 5 | . . . . 1 1 1 . . 1 . . . . . 1 . . . Network Hub 1 | . . . . . . . . . . . . . 1 . . . . . Machines Sabotaged . | . . . . . . . . . . . . . . . . . . . Garrisons Compromised . | . . . . . . . . . . . . . . . . . . . Overloaded Fab Kills . | . . . . . . . . . . . . . . . . . . . Fab Network Shutdowns . | . . . . . . . . . . . . . . . . . . . Hacking | -11 -10 -9 -9 -8 -7 -6 -5 -5 -5 -5 -5 -5 -5 -4 -3 -3 -2 -1 --------- Run | Scr Mat Mat Min Mat Fac Fac Fac Was Fac Ext Cet Arc Hub Fac Res Tes Res Acc Machines Accessed 45 | . 1 . . 6 4 4 . . 1 12 1 . 4 . 2 7 . 3 Terminals 35 | . 1 . . 5 2 3 . . . 12 1 . 4 . 1 4 . 2 Fabricators 1 | . . . . . 1 . . . . . . . . . . . . . Repair Stations 1 | . . . . . . . . . . . . . . . . 1 . . Recycling Units 1 | . . . . . . . . . . . . . . . . . . 1 Scanalyzers 1 | . . . . . . . . . . . . . . . . 1 . . Garrison Access 6 | . . . . 1 1 1 . . 1 . . . . . 1 1 . . Total Hacks 108 | . 3 . . 21 11 9 . . 2 20 3 . 12 . 4 16 . 7 Successful 46 | . 2 . . 13 3 4 . . . 11 . . 3 . 1 8 . 1 Failed 62 | . 1 . . 8 8 5 . . 2 9 3 . 9 . 3 8 . 6 Catastrophic 15 | . . . . . 3 1 . . . . 2 . 4 . 1 3 . 1 Database Lockouts . | . . . . . . . . . . . . . . . . . . . Manual 7 | . . . . 2 . . . . . . 3 1 . . . 1 . . Terminals 87 | . 3 . . 18 6 8 . . . 20 3 . 12 . 2 9 . 6 Fabricators 2 | . . . . . 2 . . . . . . . . . . . . . Repair Stations 3 | . . . . . . . . . . . . . . . . 3 . . Recycling Units 1 | . . . . . . . . . . . . . . . . . . 1 Scanalyzers 1 | . . . . . . . . . . . . . . . . 1 . . Garrison Access 14 | . . . . 3 3 1 . . 2 . . . . . 2 3 . . Terminal Hacks 34 | . 2 . . 11 1 3 . . . 11 . . 3 . . 3 . . Record 1 | . . . . . . . . . . . . . 1 . . . . . Robot Analysis 3 | . 1 . . 2 . . . . . . . . . . . . . . Prototype ID Bank 4 | . . . . 2 1 . . . . . . . 1 . . . . . Open Door 10 | . . . . . . . . . . 10 . . . . . . . . Level Access Points 1 | . . . . . . . . . . . . . 1 . . . . . Branch Access Points 1 | . . . . . . . . . . . . . . . . 1 . . Unreport Threat 2 | . . . . . . 2 . . . . . . . . . . . . Dispatch Records 1 | . . . . 1 . . . . . . . . . . . . . . Security Status 1 | . . . . 1 . . . . . . . . . . . . . . Patrol Status 1 | . . . . 1 . . . . . . . . . . . . . . Recall Investigation 1 | . . . . . . . . . . . . . . . . 1 . . Recall Reinforcements 2 | . . . . 2 . . . . . . . . . . . . . . Recall Assault 2 | . . . . . . 1 . . . 1 . . . . . . . . Zone Layout 4 | . 1 . . 2 . . . . . . . . . . . 1 . . Fabricator Hacks 1 | . . . . . 1 . . . . . . . . . . . . . Build 1 | . . . . . 1 . . . . . . . . . . . . . Repair Station Hacks 3 | . . . . . . . . . . . . . . . . 3 . . Scan Component 2 | . . . . . . . . . . . . . . . . 2 . . Repair 1 | . . . . . . . . . . . . . . . . 1 . . Recycling Unit Hacks 1 | . . . . . . . . . . . . . . . . . . 1 Report Inventory 1 | . . . . . . . . . . . . . . . . . . 1 Scanalyzer 1 | . . . . . . . . . . . . . . . . 1 . . Insert Component 1 | . . . . . . . . . . . . . . . . 1 . . Garrison Access Hacks 4 | . . . . 1 1 1 . . . . . . . . 1 . . . Seal Access 4 | . . . . 1 1 1 . . . . . . . . 1 . . . Unauthorized Hacks 2 | . . . . 1 . . . . . . . . . . . 1 . . Terminals 2 | . . . . 1 . . . . . . . . . . . 1 . . Track 2 | . . . . 1 . . . . . . . . . . . 1 . . Fabricators . | . . . . . . . . . . . . . . . . . . . Repair Stations . | . . . . . . . . . . . . . . . . . . . Recycling Units . | . . . . . . . . . . . . . . . . . . . Scanalyzers . | . . . . . . . . . . . . . . . . . . . Garrison Access . | . . . . . . . . . . . . . . . . . . . Data Cores Recovered 2 | . . . . 1 . . . . . . . . 1 . . . . . Used 1 | . . . . 1 . . . . . . . . . . . . . . Hacking Detections 33 | . . . . 5 4 3 . . 1 6 1 . 4 . 1 5 . 3 Full Trace Events 11 | . . . . 1 2 2 . . . 1 1 . 2 . 1 1 . . Feedback Events 1 | . . . . 1 . . . . . . . . . . . . . . Corruption 1 | . . . . 1 . . . . . . . . . . . . . . Feedback Blocked . | . . . . . . . . . . . . . . . . . . . Robot Schematics Acquired . | . . . . . . . . . . . . . . . . . . . Robots Built . | . . . . . . . . . . . . . . . . . . . Matter . | . . . . . . . . . . . . . . . . . . . Time . | . . . . . . . . . . . . . . . . . . . Total Robot Build Rating . | . . . . . . . . . . . . . . . . . . . Part Schematics Acquired . | . . . . . . . . . . . . . . . . . . . Parts Built 2 | . . . . . 2 . . . . . . . . . . . . . Matter 234 | . . . . . 234 . . . . . . . . . . . . . Time 117 | . . . . . 117 . . . . . . . . . . . . . Total Part Build Rating 14 | . . . . . 14 . . . . . . . . . . . . . Parts Repaired 1 | . . . . . . . . . . . . . . . . 1 . . Time 108 | . . . . . . . . . . . . . . . . 108 . . Parts Recycled . | . . . . . . . . . . . . . . . . . . . Recycled Matter . | . . . . . . . . . . . . . . . . . . . Retrieved Matter . | . . . . . . . . . . . . . . . . . . . Retrieved Components . | . . . . . . . . . . . . . . . . . . . Parts Scanalyzed . | . . . . . . . . . . . . . . . . . . . Part Schematics Acquired . | . . . . . . . . . . . . . . . . . . . Parts Damaged . | . . . . . . . . . . . . . . . . . . . Bothacking | -11 -10 -9 -9 -8 -7 -6 -5 -5 -5 -5 -5 -5 -5 -4 -3 -3 -2 -1 ------------ Run | Scr Mat Mat Min Mat Fac Fac Fac Was Fac Ext Cet Arc Hub Fac Res Tes Res Acc Used RIF Installer . | . . . . . . . . . . . . . . . . . . . Robots Hacked . | . . . . . . . . . . . . . . . . . . . Non-combat . | . . . . . . . . . . . . . . . . . . . Combat . | . . . . . . . . . . . . . . . . . . . Robot Hacks Applied . | . . . . . . . . . . . . . . . . . . . Relay Couplers Released 10 | . . . . . . . . . 3 . . . . . 7 . . . Machine Destruction 3 | . . . . . . . . . 3 . . . . . . . . . Programmers 7 | . . . . . . . . . . . . . . . 7 . . . Robots Rewired 5 | . . . . . . . . . . 4 . . . . . 1 . . Allies Hacked 1 | . . . . . . . . . 1 . . . . . . . . . Hacks Repelled . | . . . . . . . . . . . . . . . . . . . Allies | -11 -10 -9 -9 -8 -7 -6 -5 -5 -5 -5 -5 -5 -5 -4 -3 -3 -2 -1 -------- Run | Scr Mat Mat Min Mat Fac Fac Fac Was Fac Ext Cet Arc Hub Fac Res Tes Res Acc Total Allies 45 | . . . . . . 3 . 19 . 17 5 . . . . 1 . . Largest Group 19 | . . . . . . 3 . 19 11 9 7 7 5 . . 1 . . Highest-Rated Group 714 | . . . . . . 93 . 714 421 319 650 644 457 . . 42 . . Highest-Rated Ally 156 | . . . . . . 31 . 50 46 156 156 150 94 . . 42 . . Total Orders 29 | . . . . . . 15 . . . . . . 3 . 3 2 . 6 STAY 1 | . . . . . . 1 . . . . . . . . . . . . ROAM 1 | . . . . . . . . . . . . . 1 . . . . . EXPLORE 27 | . . . . . . 14 . . . . . . 2 . 3 2 . 6 Ally Attacks 478 | . . . . . . 18 . 117 9 125 99 29 78 . . 3 . . Total Damage 14204 | . . . . . . 318 . 4728 168 2450 2357 1133 2952 . . 98 . . Kills 67 | . . . . . . 2 . 11 1 15 14 5 19 . . . . . Allies Corrupted 6 | . . . . . . 1 . . 2 . . . 2 . 1 . . . Allies Melted 1 | . . . . . . . . . . 1 . . . . . . . . Intel | -11 -10 -9 -9 -8 -7 -6 -5 -5 -5 -5 -5 -5 -5 -4 -3 -3 -2 -1 ------- Run | Scr Mat Mat Min Mat Fac Fac Fac Was Fac Ext Cet Arc Hub Fac Res Tes Res Acc Robot Analysis Total 3 | . 1 . . 2 . . . . . . . . . . . . . . Derelict Logs Recovered 1 | . . . 1 . . . . . . . . . . . . . . . Drone Launches 28 | . . . . . . 14 . . . . . . 2 . 3 2 . 7 Drone Recoveries 9 | . . . . . . 4 . . . . . . . . 2 1 . 2 Exploration | -11 -10 -9 -9 -8 -7 -6 -5 -5 -5 -5 -5 -5 -5 -4 -3 -3 -2 -1 ------------- Run | Scr Mat Mat Min Mat Fac Fac Fac Was Fac Ext Cet Arc Hub Fac Res Tes Res Acc Turns Passed 15801 | 80 382 329 830 1150 1872 757 885 437 150 1778 540 165 655 243 2190 1100 710 1548 Spaces Moved 7298 | 45 201 155 503 594 870 309 425 251 110 844 286 114 421 105 936 333 290 506 Core 12 | 11 . . . . . . . . . . . . . . . . . 1 Treads 3387 | 34 201 155 143 201 398 . 75 . . . . . 15 105 936 333 290 501 Legs . | . . . . . . . . . . . . . . . . . . . Wheels 3899 | . . . 360 393 472 309 350 251 110 844 286 114 406 . . . . 4 Hover . | . . . . . . . . . . . . . . . . . . . Flight . | . . . . . . . . . . . . . . . . . . . Fastest Speed 50 | 50 160 160 140 130 120 130 120 120 120 120 120 120 120 160 160 172 172 130 Average Speed 151 | 153 160 177 151 148 160 130 158 120 120 120 120 120 121 168 177 172 172 180 Slowest Speed 2400 | 250 160 180 200 220 240 140 280 120 120 120 120 120 160 180 180 172 172 2400 Overloaded Moves . | . . . . . . . . . . . . . . . . . . . Propulsion Burnouts . | . . . . . . . . . . . . . . . . . . . Robots Hopped 1 | . . . . . . . . . . 1 . . . . . . . . Cave-ins Triggered 2 | . . . . . . . . 1 . . . . . . . 1 . . Exploration Rate (%) 39 | 3 36 14 97 53 27 26 15 83 4 82 70 84 43 4 32 59 10 12 Regions Visited 18 Branch Regions 6 Pre-discovered Areas . | . . . . . . . . . . . . . . . . . . . Known Exits Taken 12 | . . . . 1 1 1 . . 1 1 1 1 1 1 1 1 1 . Unknown Exits Taken 4 | 1 1 1 1 . . . . . . . . . . . . . . . Scrap Searched 4 | . . . 4 . . . . . . . . . . . . . . . Spaces Dug 114 | . . . . . 3 4 18 14 . 12 . . 11 3 30 4 8 7 Terrain Destroyed 920 | . 2 11 21 146 20 5 22 14 1 67 18 7 223 35 32 169 29 98 Melee 100 | . . . . . 3 4 18 14 . 1 . . 8 3 30 4 8 7 Projectile 138 | . . . . 6 2 1 4 . 1 20 5 7 28 32 2 20 . 10 AOE 682 | . 2 11 21 140 15 . . . . 46 13 . 187 . . 145 21 81 Terrain Rammed . | . . . . . . . . . . . . . . . . . . . Walls Destroyed . | . . . . . . . . . . . . . . . . . . . Machines Disabled . | . . . . . . . . . . . . . . . . . . . Actions | -11 -10 -9 -9 -8 -7 -6 -5 -5 -5 -5 -5 -5 -5 -4 -3 -3 -2 -1 --------- Run | Scr Mat Mat Min Mat Fac Fac Fac Was Fac Ext Cet Arc Hub Fac Res Tes Res Acc Total 10577 | 54 249 183 555 737 1247 602 555 351 122 1490 447 134 495 139 1271 645 413 888 Wait 1721 | . 18 . 21 43 260 244 60 63 8 450 119 9 7 3 113 162 40 101 Move 7279 | 44 200 154 502 593 869 308 425 250 109 841 285 113 420 104 935 332 289 506 Hop 1 | . . . . . . . . . . 1 . . . . . . . . Pick Up 167 | 5 10 7 3 9 20 2 8 4 . 11 5 2 5 1 28 5 9 33 Fast Attach 99 | 5 4 1 2 8 7 2 3 1 . 6 1 1 3 1 14 5 5 30 Attach 108 | . 1 2 2 3 3 2 5 3 1 5 . 1 6 5 8 12 3 46 Detach 23 | . . . 2 2 1 1 . . . 1 . . . 2 5 1 3 5 Swap 167 | . 3 2 3 8 8 6 9 6 . 14 5 . 6 5 44 23 13 12 Drop 143 | . 6 2 6 12 24 4 4 4 . 9 10 3 6 1 26 5 10 11 Fire 589 | . 7 15 14 59 50 24 23 6 2 44 22 5 32 14 64 77 22 109 Melee 162 | . . . . . 5 4 18 14 1 21 . . 10 3 34 13 19 20 Ram 2 | . . . . . . . . . . . . . . . . . . 2 Kick . | . . . . . . . . . . . . . . . . . . . Crush 13 | . . . . . . . . . . . . . . . . 2 . 11 Escape Stasis 69 | . . . . . . . . . . 64 . . . . . 5 . . Rewire 27 | . . . . . . . . . 1 23 . . . . . 3 . . Trap . | . . . . . . . . . . . . . . . . . . . Miscellaneous 7 | . . . . . . 5 . . . . . . . . . . . 2 Route ------- -11/Scrapyard -10/Materials (discovered 2 exits: [*Mat] / [*Min]) -9/Materials -9/Mines (discovered 2 exits: *Mat x2) -8/Materials -7/Factory -6/Factory -5/Factory -5/Waste -5/Factory -5/Extension (discovered 3 exits: *Fac x2 / *Cet) -5/Cetus (discovered 2 exits: *Fac / *Arc) -5/Archives (discovered 3 exits: *Fac / *Hub x2) -5/Hub_04(d) (discovered 4 exits: *Fac x4) -4/Factory -3/Research (discovered 2 exits: *Res / *Tes) -3/Testing -2/Research -1/Access History --------- Turn | Location | Event 23 | -11/Scrapyard | Discovered new exit (range 16) 81 | -11/Scrapyard | Entered Materials 156 | -10/Materials | Discovered new exit (range 6) 318 | -10/Materials | Build established: Mutant 398 | -10/Materials | Discovered new exit (range 15) 463 | -10/Materials | Entered another Materials area 463 | -9/Materials | Evolved 2 slots: Utility x1, Weapon x1 677 | -9/Materials | Discovered new exit (range 13) 792 | -9/Materials | Entered Mines 825 | -9/Mines | Discovered new exit (range 6) 1065 | -9/Mines | Discovered new exit (range 12) 1411 | -9/Mines | Build established: Derelict-Mutant 1622 | -9/Mines | Entered Materials 1622 | -8/Materials | Evolved 2 slots: Utility x2 2568 | -8/Materials | Discovered new exit (range 10) 2599 | -8/Materials | Identified exit to Factory 2772 | -8/Materials | Entered Factory 2772 | -7/Factory | Evolved 2 slots: Propulsion x1, Utility x1 4336 | -7/Factory | Build established: Hauler-Gunner 4440 | -7/Factory | Fabricated Lgt. Antimatter Reactor (x2) 4541 | -7/Factory | Discovered new exit (range 12) 4571 | -7/Factory | Identified exit to Factory 4644 | -7/Factory | Entered another Factory area 4644 | -6/Factory | Evolved 2 slots: Utility x2 4893 | -6/Factory | Allied Derelicts emerged from ambush trap array 5062 | -6/Factory | Discovered new exit (range 88) 5400 | -6/Factory | Identified exit to Factory 5401 | -6/Factory | Entered another Factory area 5401 | -5/Factory | Evolved 2 slots: Propulsion x1, Utility x1 5679 | -5/Factory | Build established: Hauler-Mutant 6286 | -5/Factory | Sucked down chute 6286 | -5/Factory | Entered Waste 6301 | -5/Waste | EMP discharged 6311 | -5/Waste | Spotted C-40 Crusher 6355 | -5/Waste | Spotted C-40 Crusher 6376 | -5/Waste | Crushed by Compactor (1 part destroyed) 6401 | -5/Waste | EMP discharged 6401 | -5/Waste | System corruption reached 10% 6429 | -5/Waste | Crushed by falling debris 6451 | -5/Waste | Spotted C-40 Crusher 6487 | -5/Waste | Spotted C-40 Crusher 6487 | -5/Waste | Spotted C-40 Crusher 6501 | -5/Waste | EMP discharged 6555 | -5/Waste | Spotted C-40 Crusher 6585 | -5/Waste | Met Warlord forces unprepared to attack 6601 | -5/Waste | EMP discharged 6612 | -5/Waste | Allies destroyed C-40 Crusher 6617 | -5/Waste | Allies destroyed C-40 Crusher 6620 | -5/Waste | Allies destroyed C-40 Crusher 6622 | -5/Waste | Allies destroyed C-40 Crusher 6625 | -5/Waste | Allies destroyed C-40 Crusher 6640 | -5/Waste | Allies destroyed C-40 Crusher 6678 | -5/Waste | Discovered new exit (range 14) 6701 | -5/Waste | EMP discharged 6701 | -5/Waste | System corruption reached 30% 6715 | -5/Waste | Identified exit to Factory 6723 | -5/Waste | Entered Factory 6723 | -5/Factory | Accompanied by 11 allies 6849 | -5/Factory | Discovered new exit (range 16) 6866 | -5/Factory | Identified exit to Extension 6873 | -5/Factory | Entered Extension 6873 | -5/Extension | Accompanied by 8 allies 7038 | -5/Extension | Rescued a captive Derelict 7038 | -5/Extension | Rescued a captive Derelict 7192 | -5/Extension | Rescued a captive Derelict 7262 | -5/Extension | Build established: Hauler-Skirmisher 7287 | -5/Extension | Rescued a captive Derelict 7291 | -5/Extension | Spotted B-75 Beast 7299 | -5/Extension | Spotted B-75 Beast 7335 | -5/Extension | Rescued a captive Derelict 7336 | -5/Extension | Rescued a captive Derelict 7352 | -5/Extension | Lost 3 parts (1n1u1w) 7648 | -5/Extension | Rescued a captive Derelict 7768 | -5/Extension | Rescued a captive Derelict 7769 | -5/Extension | Rescued a captive Derelict 7791 | -5/Extension | Rescued a captive Derelict 7792 | -5/Extension | Rescued a captive Derelict 7808 | -5/Extension | Rescued A7 7812 | -5/Extension | Rescued a captive Derelict 7907 | -5/Extension | Discovered new exit (range 10) 7908 | -5/Extension | Discovered new exit (range 6) 8182 | -5/Extension | Identified exit to Factory 8199 | -5/Extension | Identified exit to Cetus 8361 | -5/Extension | Discovered exit to Factory (range 3) 8651 | -5/Extension | Entered Cetus 8651 | -5/Cetus | Accompanied by 4 allies (A7) 8656 | -5/Cetus | Acquired a Cetus Manufacturing Module code from A7 8669 | -5/Cetus | Spotted Cetus Guard 8669 | -5/Cetus | Spotted Cetus Guard 8670 | -5/Cetus | Allies destroyed Cetus Guard 8671 | -5/Cetus | Destroyed Cetus Guard 8671 | -5/Cetus | Spotted Cetus Guard 8672 | -5/Cetus | Spotted Cetus Guard 8676 | -5/Cetus | Destroyed Cetus Guard 8679 | -5/Cetus | Allies destroyed Cetus Guard 8825 | -5/Cetus | Started Cetus Manufacturing Module 8850 | -5/Cetus | Manufactured an Enhanced Grunt 8854 | -5/Cetus | Discovered new exit (range 15) 8875 | -5/Cetus | Manufactured an Enhanced Grunt 8894 | -5/Cetus | Spotted Cetus Guard 8894 | -5/Cetus | Spotted Cetus Guard 8897 | -5/Cetus | Spotted Cetus Guard 8898 | -5/Cetus | Spotted Cetus Guard 8900 | -5/Cetus | Manufactured an Enhanced Grunt 8908 | -5/Cetus | Allies destroyed Cetus Guard 8912 | -5/Cetus | Discovered exit to Factory (range 16) 8917 | -5/Cetus | Destroyed Cetus Guard 8923 | -5/Cetus | Allies destroyed Cetus Guard 8924 | -5/Cetus | Allies destroyed Cetus Guard 8925 | -5/Cetus | Manufactured an Enhanced Grunt 8934 | -5/Cetus | Met Revision 17 8950 | -5/Cetus | Manufactured an Enhanced Grunt 8961 | -5/Cetus | Destroyed Revision 17 9085 | -5/Cetus | Identified exit to Archives 9191 | -5/Cetus | Entered Archives 9191 | -5/Archives | Accompanied by 7 allies (A7) 9245 | -5/Archives | Discovered new exit (range 15) 9254 | -5/Archives | Unable to access archive contents 9259 | -5/Archives | Discovered new exit (range 13) 9275 | -5/Archives | Identified exit to Hub_04(d) 9297 | -5/Archives | Unable to access archive contents 9314 | -5/Archives | Unable to access archive contents 9319 | -5/Archives | Discovered exit to Factory (range 14) 9356 | -5/Archives | Entered Hub_04(d) 9356 | -5/Hub_04(d) | Accompanied by 5 allies 9603 | -5/Hub_04(d) | Disrupted transfer network 9684 | -5/Hub_04(d) | Build established: Hauler-Gunner 9903 | -5/Hub_04(d) | Network Hub disabled 9969 | -5/Hub_04(d) | Spotted Lightning 9973 | -5/Hub_04(d) | Spotted Lightning 9980 | -5/Hub_04(d) | Spotted Lightning 10011 | -5/Hub_04(d) | Entered Factory 10011 | -4/Factory | Evolved 2 slots: Utility x1, Weapon x1 10033 | -4/Factory | Lost 5 parts (2n2u1w) 10241 | -4/Factory | Discovered new exit (range 7) 10252 | -4/Factory | Identified exit to Research 10254 | -4/Factory | Entered Research 10254 | -3/Research | Evolved 2 slots: Power x1, Utility x1 11084 | -3/Research | System corruption reached 10% 11117 | -3/Research | Lost 3 parts (1p1u1w) 11636 | -3/Research | Garrison activated, responded to threat 11805 | -3/Research | Found Gamma Bomb Array 12088 | -3/Research | Discovered new exit (range 30) 12095 | -3/Research | Found Adv. Powered Armor 12156 | -3/Research | Discovered new exit (range 48) 12372 | -3/Research | Identified exit to Testing 12444 | -3/Research | Entered Testing 12487 | -3/Testing | Found Prototype Device 12588 | -3/Testing | Scanned by Researcher 12624 | -3/Testing | Found Prototype Ballistic Cannon 12652 | -3/Testing | Spotted PG-7QA6WYEYXT 12667 | -3/Testing | Destroyed PG-7QA6WYEYXT 12729 | -3/Testing | Lost 3 parts (1u2w) 12941 | -3/Testing | Repaired Centrium Heavy Treads 12980 | -3/Testing | Found Fusion Bomb Launcher 13143 | -3/Testing | Destroyed 12 combat bots 13194 | -3/Testing | Crushed by falling debris 13228 | -3/Testing | Lost 4 parts (1p3u) 13330 | -3/Testing | Found Prototype Energy Gun 13330 | -3/Testing | Identified Hyp. EM Gauss Rifle 13345 | -3/Testing | Discovered new exit (range 10) 13379 | -3/Testing | Identified exit to Research 13434 | -3/Testing | Garrison activated, responded to threat 13466 | -3/Testing | Found Portable AFG 13544 | -3/Testing | Entered Research 13544 | -2/Research | Evolved 2 slots: Utility x2 13679 | -2/Research | Spotted B-90 Cyclops 13834 | -2/Research | Build established: Scavenger-Mutant 14169 | -2/Research | Build established: Hauler-Skirmisher 14191 | -2/Research | Destroyed 7 combat bots 14205 | -2/Research | Discovered new exit (range 6) 14223 | -2/Research | Identified exit to Access 14254 | -2/Research | Entered Access 14254 | -1/Access | Evolved 2 slots: Utility x2 14780 | -1/Access | Destroyed 8 combat bots 14797 | -1/Access | First assault squad dispatched 14885 | -1/Access | Lost 15 parts (1p1n3u10w) 15090 | -1/Access | System corruption reached 10% 15148 | -1/Access | Identified Perforator 15150 | -1/Access | Lost 7 parts (2p1n1u3w) 15257 | -1/Access | Lost 8 parts (1p1n6u) 15282 | -1/Access | Destroyed 10 combat bots 15530 | -1/Access | Destroyed 9 combat bots 15643 | -1/Access | Lost 9 parts (1p4u4w) 15686 | -1/Access | Spotted B-99 Colossus 15767 | -1/Access | Core integrity fell below 50% 15772 | -1/Access | Identified AEGIS Remote Shield 15795 | -1/Access | Core integrity fell below 20% 15802 | -1/Access | Destroyed by Q157-s with Vibroblade Last Messages --------------- 15784_ Com. Wheel destroyed. 15784_ Slammed into G-73 Enforcer. 15786_ U-05 Engineer lays Concrete. 15787_ Com. Wheel destroyed. 15787_ Mic. Fission Core destroyed. 15788_ Acquired 9 matter. 15788_ U-05 Engineer lays Concrete. 15790_ Hcp. Storage Unit destroyed. 15792_ Q157-s follow-up attacks with Prototype Slashing Weapon. 15792_ AEGIS Remote Shield destroyed. 15795_ C-30 ARC bursts open, deploying its payload. 15795_ G-73 Enforcer unfolds itself. 15795_ B-74 Champion unfolds itself. 15795_ G-73 Enforcer unfolds itself. 15795_ E-15 Imp unfolds itself. 15796_ U-05 Engineer lays Concrete. 15796_ Adv. Targeting Computer blown off. 15796_ E-15 Imp destroyed. 15799_ Hcp. Storage Unit destroyed. 15802_ Q157-s follow-up attacks with Prototype Slashing Weapon. Map ----- +----------------------------------------------------+ | ?????????????????????????????????????????????????? | | ?????????????????????????????????????????????????? | | ?????????????????????????????????????????????????? | | ?????????????????????????????????????????????????? | | ?????????????????????????????????????????????????? | | ?????????????????????????????????????????????????? | | ?????????????????????????????????????????????????? | | ?????????????????????????????????????????????????? | | ?????????????????????????????????????????????????? | | ?????????????????????????????????????????????????? | | ?????????????????????????????????????????????????? | | ???????????????????????????? ???????????????????? | | ??????????????????????????? ????????????????? | | ???????????????????????? ?? #???????????????? | | ???????????????????????? #? #???????????????? | | ??????????????????????? #? #???????????????? | | ?###########??????????? #? #?? ???????????? | | #?????????? # %*#? ???????????? | | #?????????? #% ! # ?????????????? | | ! #?????????? +% = + ??????????????? | | #?????????? #% % #???????????????? | | % #?????????? [g #???????????????? | | % ###############gg% #???????????????? | | # ![!!%=%! #???????????????? | | # =%ggQb=l #???????????????? | | # [===g@% *= #???????????????? | | ?? # g g= [%= ????????? | | ???? # !""""""u ????????? | | ?????? # "" g /"""""" ?????????? | | ########+### "" """""" ?????????? | | " """""" ]! ? ??????????? | | " ]! ????????????? | | "" ]! ????????????? | | [ ????????????? | | ????????????? | | ! ?????????????? | | ####### ?????????????? | | ##########+#######???### ??????????????? | | #???# |#?????? ??????????????? | | #???# | #??????? ??????????????? | | #???# #?????????? ???????????????? | | #???# " """"" #???????????? ????????? | | #???#!!"""""""" ####### ????????? | | #???# ="""""""" / #????????? | | # ####???# !%""""" %= ############???????????????? | | #+#??????#=* ! #??????????????????????????? | | ???????# = = = #??????????????????????????? | | ???????#==%!! #??????????????????????????? | | ???????# % """ """ #??????????????????????????? | | ???????#= %"""T""" #??????????????????????????? | +----------------------------------------------------+ Best States ------------- Heat Dissipation 142 Energy Generation 45 Energy Capacity 1515 Matter Stores 713 Matter Capacity 750 Sight Range 16 Robot Scan Range 16 Terrain Scan Density 10 Jamming Range 12 Armor Coverage 1200 Resistance: KI 20 Resistance: TH 20 Resistance: EX 20 Resistance: EM 20 Resistance: I 20 Resistance: S 20 Resistance: P 20 Core Shielding 30 Weapon Shielding 66 Thermal Conversion 60 Weapon Cycling 15 Phase Shifting 15 Evasion (%) 55 Targeting Accuracy 16 Target Analysis 8 Core Analysis 10 Recoil Reduction 4 Matter Filtering 30 Particle Charging 20 Kinecelleration 40 Offensive Hacking 10 Item Schematics ----------------- None Robot Schematics ------------------ None Fabricated ------------ Lgt. Antimatter Reactor | x2 | -7/Factory | Preloaded Alien Tech Used ----------------- None Achievements -------------- Project G-00 Safety First Challenges ------------ None Game ------ Seed RocketRecyclingClaws Manual? 0 Play Time 04:53:28 Cumulative 281.2 hours Start 2020.12.24 @ 22:46:00 End 2020.12.25 @ 23:02:08 Sessions 5 Manual Loads 0 Difficulty Adventurer Special Mode None Game No. 26 Rogue 0 Adventurer 26 Explorer 0 Win Type - Total 14 Types 12/0/0/2/0/0/0/0/0 Lore% 52 Gallery% 68 Achievement% 54 Wizard Run 0 Options --------- ASCII 0 Keyboard 0 Movement Arrows Keybinds 0 Fullscreen 1 Font 20/Terminus Map View 66x50 Tactical HUD 1 Map Filters NONE Filters NONE Steam 1 RUN: 075544bb-d7dd-4acc-be96-dca701689749